fUSD/lending_fUSD_20240828
["ID","MTS","AMOUNT","RATE_DAILY","PERIOD"]
[336453928,1724834135423,573.76,9.626e-05,2]
[336453929,1724834162180,150.0,9.909e-05,2]
[336453930,1724834167902,1946.11818079,9.899e-05,2]
[336453931,1724834281256,300.0,9.909e-05,2]
[336453932,1724834341595,300.0,9.909e-05,2]
[336453933,1724834342233,150.0,9.909e-05,2]
[336453934,1724834343548,250.0,9.626e-05,2]
[336453935,1724834376247,23900.0,9.835e-05,2]
[336453937,1724834422897,584.27,8.219e-05,2]
[336453938,1724834475919,777.44,9.839e-05,2]
[336453939,1724834500636,199.09,9.843e-05,2]
[336453944,1724834521663,300.0,9.909e-05,2]
[336453954,1724834638187,540.99,9.812e-05,2]
[336453955,1724834641478,300.0,9.909e-05,2]
[336453960,1724834688709,475.74,9.79e-05,2]
[336453961,1724834689214,26184.95764958,9.899e-05,2]
[336453962,1724834761296,300.0,9.909e-05,2]
[336453963,1724834783792,160.09,9.855e-05,2]
[336453964,1724834834970,1994.19,9.845e-05,2]
[336453969,1724834862156,23900.0,9.776e-05,2]
[336453970,1724834882201,300.0,9.909e-05,2]
[336453971,1724834898640,-3749.16907191,9.91e-05,2]
[336453972,1724834898676,-3749.16907191,9.91e-05,2]
[336453973,1724834898721,-3749.16907191,9.91e-05,2]
[336453974,1724834898772,-3749.16907191,9.91e-05,2]
[336453975,1724834898822,-3749.16907191,9.91e-05,2]
[336453976,1724834898937,-3749.16907191,9.91e-05,2]
[336453977,1724834898992,-3749.16907191,9.91e-05,2]
[336453978,1724834899050,-3749.16907191,9.91e-05,2]
[336453979,1724834899105,-3749.16907191,9.91e-05,2]
[336453980,1724834899159,-3749.16907191,9.91e-05,2]
[336453981,1724834899211,-2645.21646187,9.91e-05,2]
[336453982,1724834899242,-276.21,9.911e-05,2]
[336453983,1724834899271,-410.1,9.923e-05,2]
[336453984,1724834899301,-417.64261004,9.943e-05,2]
[336453990,1724834938778,577.63,8.219e-05,2]
[336454013,1724834977326,173.39,9.744e-05,2]
[336454014,1724835031370,500.0,9.78e-05,2]
[336454019,1724835031980,-835.02272317,9.941e-05,2]
[336454020,1724835031990,-415.96534621,9.943e-05,2]
[336454021,1724835032002,-1330.1747091,9.943e-05,2]
[336454022,1724835032012,-265.64160913,9.988e-05,2]
[336454023,1724835032022,-200.91,9.989e-05,2]
[336454024,1724835032033,-547.48970731,9.999e-05,2]
[336454025,1724835032042,-166.39780491,9.999e-05,2]
[336454026,1724835032052,-288.14132428,0.00010009,2]
[336454027,1724835032061,-513.93567156,0.00010009,2]
[336454028,1724835032070,-304.23573553,0.00010009,2]
[336454029,1724835032079,-270.50126924,0.00010009,2]
[336454030,1724835032089,-206.09877365,0.00010009,2]
[336454031,1724835032099,-203.17347254,0.00010009,2]
[336454032,1724835032111,-155.0,0.00010009,2]
[336454033,1724835032122,-155.0,0.00010009,2]
[336454034,1724835032135,-3812.45,0.00010023,2]
[336454035,1724835032145,-164.40811307,0.00010097,2]
[336454036,1724835032156,-2900.0,0.000101,3]
[336454037,1724835032167,-374.37992778,0.000101,2]
[336454038,1724835032180,-52.68007222,0.000101,2]
[336454039,1724835032189,-452.75090154,0.000101,2]
[336454040,1724835032208,-47.23909846,0.000101,2]
[336454041,1724835032218,-150.0,0.00010164,2]
[336454042,1724835032228,-151.99,0.000102,2]
[336454043,1724835032237,-5900.0,0.000102,3]
[336454044,1724835032247,-150.99,0.000102,2]
[336454045,1724835032257,-351.86,0.000102,2]
[336454046,1724835032266,-791.18,0.000102,2]
[336454047,1724835032278,-4472.4365803,0.000103,3]
[336454048,1724835032291,-765.29022052,0.000103,3]
[336454049,1724835032304,-1500.7981108,0.000103,3]
[336454050,1724835032316,-448.12958754,0.000103,3]
[336454051,1724835032328,-771.38666872,0.000103,3]
[336454052,1724835032343,-941.95883212,0.000103,3]
[336454053,1724835032353,-791.18,0.00010387,2]
[336454054,1724835032362,-791.18,0.00010387,2]
[336454055,1724835032372,-789.92,0.00010387,2]
[336454056,1724835032381,-1215.56015809,0.000104,3]
[336454058,1724835032393,-303.4456781,0.000104,3]
[336454074,1724835038001,-716.41287549,9.943e-05,2]
[336454075,1724835038011,-2583.58712451,0.000104,3]
[336454076,1724835038026,-7697.4070393,0.000104,3]
[336454077,1724835038035,-577.63,0.00010463,2]
[336454078,1724835038045,-14800.0,0.000105,3]
[336454079,1724835038054,-504.15552654,0.00010566,2]
[336454080,1724835038063,-2900.0,0.000106,3]
[336454081,1724835038073,-306.46374965,0.00010699,2]
[336454082,1724835038082,-2900.0,0.000107,3]
[336454083,1724835038091,-590.5163,0.0001078,2]
[336454084,1724835038101,-22096.4355,0.0001078,2]
[336454085,1724835038110,-2900.0,0.000108,3]
[336454086,1724835038120,-573.76,0.00010829,2]
[336454087,1724835038129,-155.57775669,0.00010852,2]
[336454088,1724835038138,-151.02,0.0001088,2]
[336454089,1724835038148,-2403.01684,0.0001089,2]
[336454090,1724835038157,-223.93364178,0.0001089,2]
[336454091,1724835038166,-286.29076412,0.00010899,2]
[336454092,1724835038175,-286.29076412,0.00010899,2]
[336454093,1724835038185,-286.29076412,0.00010899,2]
[336454094,1724835038194,-286.29076412,0.00010899,2]
[336454095,1724835038203,-286.29076412,0.00010899,2]
[336454096,1724835038213,-286.29076412,0.00010899,2]
[336454097,1724835038222,-286.29076412,0.00010899,2]
[336454098,1724835038232,-286.29076412,0.00010899,2]
[336454099,1724835038241,-286.29076412,0.000109,2]
[336454100,1724835038250,-286.29076412,0.000109,2]
[336454101,1724835038260,-2900.0,0.000109,3]
[336454102,1724835038270,-1216.47459794,0.000109,2]
[336454103,1724835038279,-168.35634739,0.000109,2]
[336454104,1724835038288,-500.0,0.00010912,2]
[336454105,1724835038297,-800.0,0.00010942,2]
[336454106,1724835038307,-700.0,0.00010942,2]
[336454107,1724835038316,-26281.42561279,0.00010949,2]
[336454108,1724835038326,-170.801,0.00010956,2]
[336454109,1724835038335,-330.77485732,0.00010958,2]
[336454111,1724835038347,-169.22514268,0.00010958,2]
[336454113,1724835038357,-500.0,0.00010958,2]
[336454114,1724835038367,-411.62063466,0.00010958,2]
[336454117,1724835038378,-88.37936534,0.00010958,2]
[336454119,1724835038387,-500.0,0.00010958,2]
[336454121,1724835038396,-243.82247103,0.00010958,2]
[336454122,1724835038405,-500.0,0.00010958,2]
[336454124,1724835038413,-142.3318949,0.00010958,2]
[336454126,1724835038425,-357.6681051,0.00010958,2]
[336454128,1724835038434,-501.90547566,0.00010958,2]
[336454130,1724835038444,-83.25300307,0.00010958,2]
[336454132,1724835038456,-297.43649822,0.00010958,2]
[336454134,1724835038465,-200.0,0.00010959,2]
[336454136,1724835038474,-172.58,0.00010959,2]
[336454138,1724835038483,-158.27,0.00010959,2]
[336454140,1724835038492,-200.0,0.00010973,2]
[336454142,1724835038501,-200.0,0.00010973,2]
[336454144,1724835038511,-3813.36,0.0001098,2]
[336454145,1724835038521,-383.66703367,0.00010989,2]
[336454148,1724835038531,-173.5339481,0.00010995,2]
[336454150,1724835038540,-1388.485832,0.00010995,2]
[336454151,1724835038550,-500.0,0.00010996,2]
[336454153,1724835038560,-500.97693386,0.00010996,2]
[336454155,1724835038572,-500.0,0.00010996,2]
[336454157,1724835038582,-500.0,0.00010996,2]
[336454159,1724835038592,-500.0,0.00010996,2]
[336454161,1724835038603,-500.0,0.00010996,2]
[336454163,1724835038613,-500.0,0.00010996,2]
[336454165,1724835038623,-500.0,0.00010996,2]
[336454167,1724835038632,-227.29101966,0.00010996,2]
[336454169,1724835038642,-500.0,0.00010996,2]
[336454171,1724835038652,-607.63143337,0.00010996,2]
[336454172,1724835038663,-10481.65,0.00010996,2]
[336454175,1724835038673,-500.0,0.00010996,2]
[336454177,1724835038685,-673.61797236,0.00010996,2]
[336454178,1724835038694,-195.78023,0.00010997,2]
[336454180,1724835038705,-552.52443351,0.00010997,2]
[336454182,1724835038714,-500.0,0.00010997,2]
[336454184,1724835038724,-500.0,0.00010997,2]
[336454186,1724835038734,-500.0,0.00010997,2]
[336454188,1724835038744,-500.0,0.00010997,2]
[336454190,1724835038753,-500.0,0.00010997,2]
[336454192,1724835038762,-500.0,0.00010997,2]
[336454194,1724835038774,-500.0,0.00010997,2]
[336454196,1724835038784,-5388.94377888,0.00010997,2]
[336454198,1724835038793,-587.77405186,0.00010998,2]
[336454200,1724835038803,-500.0,0.00010998,2]
[336454202,1724835038812,-500.0,0.00010998,2]
[336454204,1724835038822,-224.55135198,0.00010998,2]
[336454206,1724835038832,-501.14833669,0.00010998,2]
[336454208,1724835038841,-500.0,0.00010998,2]
[336454209,1724835038851,-500.0,0.00010998,2]
[336454211,1724835038860,-500.0,0.00010998,2]
[336454213,1724835038870,-500.0,0.00010998,2]
[336454215,1724835038880,-500.0,0.00010998,2]
[336454217,1724835038890,-4.96848962,0.00010998,2]
[336454219,1724835038903,-532.03187322,0.00010998,2]
[336454221,1724835038913,-500.0,0.00010998,2]
[336454223,1724835038924,-500.0,0.00010998,2]
[336454225,1724835038934,-500.0,0.00010998,2]
[336454227,1724835038944,-500.0,0.00010998,2]
[336454229,1724835038954,-500.0,0.00010998,2]
[336454231,1724835038963,-500.0,0.00010998,2]
[336454233,1724835038974,-500.0,0.00010998,2]
[336454235,1724835038984,-500.0,0.00010998,2]
[336454237,1724835038993,-500.0,0.00010998,2]
[336454239,1724835039004,-500.0,0.00010998,2]
[336454241,1724835039014,-500.0,0.00010998,2]
[336454243,1724835039025,-500.0,0.00010998,2]
[336454245,1724835039035,-500.0,0.00010998,2]
[336454247,1724835039045,-2403.01683,0.00010998,2]
[336454248,1724835039054,-2056.45066978,0.00010998,2]
[336454251,1724835039070,-346.56617022,0.00010998,2]
[336454253,1724835039080,-652.36899879,0.00010998,2]
[336454255,1724835039091,-1018.81330539,0.00010998,2]
[336454263,1724835040002,-500.0,0.00010973,2]
[336454264,1724835040012,-731.83452582,0.00010998,2]
[336454265,1724835040021,-1784.00537418,0.00010998,2]
[336454266,1724835040058,-619.01146582,0.00010998,2]
[336454267,1724835040067,-1162.52352993,0.00010998,2]
[336454268,1724835040117,-453.16590618,0.00010998,2]
[336454269,1724835040129,-279.51969545,0.00010998,2]
[336454270,1724835040173,-507.80770844,0.00010998,2]
[336454271,1724835040183,-96.65229156,0.00010998,2]
[336454272,1724835040283,-1009.71667059,0.00010998,2]
[336454273,1724835040294,-3628.02515621,0.00010998,2]
[336454274,1724835040307,-413.7332465,0.00010998,2]
[336454275,1724835040318,-1058.18044309,0.00010998,2]
[336454276,1724835040331,-1708.49219205,0.00010998,2]
[336454277,1724835040340,-2461.54246404,0.00010998,2]
[336454278,1724835040393,-5453.25753596,0.00010998,2]
[336454279,1724835040402,-7914.8,0.00010998,2]
[336454280,1724835040412,-500.0,0.00010998,2]
[336454281,1724835040591,-10481.65,0.00010998,2]
[336454282,1724835040601,-10481.65,0.00010998,2]
[336454283,1724835040611,-500.0,0.00010998,2]
[336454284,1724835040621,-79.13298984,0.00010998,2]
[336454285,1724835040632,-244.75701016,0.00010998,2]
[336454286,1724835040642,-500.0,0.00010998,2]
[336454287,1724835040653,-500.0,0.00010998,2]
[336454288,1724835040662,-635.04868718,0.00010998,2]
[336454289,1724835040672,-515.75659482,0.00010998,2]
[336454290,1724835040681,-150.90510273,0.00010999,2]
[336454291,1724835040691,-5919.30568265,0.00010999,2]
[336454292,1724835040701,-98773.1446582,0.00010999,2]
[336454293,1724835040710,-500.0,0.00010999,2]
[336454294,1724835040719,-278.08149832,0.00010999,2]
[336454295,1724835040728,-500.0,0.00010999,2]
[336454296,1724835040738,-500.0,0.00010999,2]
[336454297,1724835040747,-500.0,0.00010999,2]
[336454298,1724835040757,-500.0,0.00010999,2]
[336454299,1724835040766,-500.0,0.00010999,2]
[336454300,1724835040783,-500.0,0.00010999,2]
[336454301,1724835040793,-500.0,0.00010999,2]
[336454302,1724835040803,-500.0,0.00010999,2]
[336454303,1724835040813,-500.0,0.00010999,2]
[336454304,1724835040822,-500.0,0.00010999,2]
[336454305,1724835040831,-500.0,0.00010999,2]
[336454306,1724835040841,-500.0,0.00010999,2]
[336454307,1724835040850,-320.15,0.00010999,2]
[336454308,1724835040859,-500.0,0.00010999,2]
[336454309,1724835040868,-500.0,0.00010999,2]
[336454310,1724835040878,-500.0,0.00010999,2]
[336454311,1724835040887,-500.0,0.00010999,2]
[336454312,1724835040898,-500.0,0.00010999,2]
[336454313,1724835040908,-500.0,0.00010999,2]
[336454314,1724835040917,-568.74,0.00010999,2]
[336454315,1724835040926,-500.0,0.00010999,2]
[336454316,1724835040935,-500.0,0.00010999,2]
[336454317,1724835040944,-500.0,0.00010999,2]
[336454318,1724835040954,-500.0,0.00010999,2]
[336454319,1724835040963,-350.85,0.00010999,2]
[336454320,1724835040972,-500.0,0.00010999,2]
[336454321,1724835040982,-500.0,0.00010999,2]
[336454322,1724835040992,-500.0,0.00010999,2]
[336454323,1724835041001,-205.66190421,0.00010999,2]
[336454324,1724835041010,-500.0,0.00010999,2]
[336454325,1724835041019,-500.0,0.00010999,2]
[336454326,1724835041031,-500.0,0.00010999,2]
[336454327,1724835041040,-500.0,0.00010999,2]
[336454328,1724835041049,-500.0,0.00010999,2]
[336454329,1724835041059,-500.0,0.00010999,2]
[336454330,1724835041068,-500.0,0.00010999,2]
[336454331,1724835041077,-500.0,0.00010999,2]
[336454332,1724835041087,-500.0,0.00010999,2]
[336454333,1724835041096,-500.0,0.00010999,2]
[336454334,1724835041105,-500.0,0.00010999,2]
[336454335,1724835041114,-452.5079861,0.00010999,2]
[336454336,1724835041124,-500.0,0.00010999,2]
[336454337,1724835041134,-500.0,0.00010999,2]
[336454338,1724835041145,-500.0,0.00010999,2]
[336454339,1724835041154,-412.95,0.00010999,2]
[336454340,1724835041164,-226.47530562,0.00010999,2]
[336454341,1724835041173,-500.0,0.00010999,2]
[336454342,1724835041183,-500.0,0.00010999,2]
[336454343,1724835041192,-500.0,0.00010999,2]
[336454344,1724835041201,-565.51,0.00010999,2]
[336454345,1724835041210,-500.0,0.00010999,2]
[336454346,1724835041220,-629.24732581,0.00010999,2]
[336454347,1724835041229,-7914.8,0.00010999,2]
[336454348,1724835041238,-7914.8,0.00010999,2]
[336454349,1724835041247,-7914.8,0.00010999,2]
[336454350,1724835041256,-7914.8,0.00010999,2]
[336454351,1724835041266,-7914.8,0.00010999,2]
[336454352,1724835041277,-7914.8,0.00010999,2]
[336454353,1724835041286,-7914.8,0.00010999,2]
[336454354,1724835041296,-7914.8,0.00010999,2]
[336454355,1724835041305,-7914.8,0.00010999,2]
[336454356,1724835041314,-7914.8,0.00010999,2]
[336454357,1724835041324,-7914.8,0.00010999,2]
[336454358,1724835041334,-7914.8,0.00010999,2]
[336454359,1724835041343,-7914.8,0.00010999,2]
[336454360,1724835041353,-7914.8,0.00010999,2]
[336454361,1724835041362,-7914.8,0.00010999,2]
[336454362,1724835041371,-7914.8,0.00010999,2]
[336454363,1724835041381,-7914.8,0.00010999,2]
[336454364,1724835041390,-7914.8,0.00010999,2]
[336454365,1724835041400,-7914.8,0.00010999,2]
[336454366,1724835041409,-7914.8,0.00010999,2]
[336454367,1724835041419,-7914.95900959,0.00010999,2]
[336454368,1724835041428,-10481.65,0.00010999,2]
[336454369,1724835041439,-10481.65,0.00010999,2]
[336454370,1724835041449,-10481.65,0.00010999,2]
[336454371,1724835041458,-10481.65,0.00010999,2]
[336454372,1724835041468,-10481.65,0.00010999,2]
[336454373,1724835041477,-3461.9143746,0.00010999,2]
[336454374,1724835041490,-505.3046845,0.00010999,2]
[336454375,1724835041501,-2809.89847193,0.00010999,2]
[336454381,1724835043026,-742.5,0.00010999,2]
[336454382,1724835043371,-2962.03246897,0.00010999,2]
[336454383,1724835043381,-8914.30046991,0.00010999,2]
[336454389,1724835045916,-1567.34953009,0.00010999,2]
[336454390,1724835045926,-4883.72400074,0.00010999,2]
[336454391,1724835046035,-5597.92599926,0.00010999,2]
[336454392,1724835046045,-853.04680074,0.00010999,2]
[336454394,1724835335985,200.0,9.89e-05,2]
[336454395,1724835448208,565.67,8.219e-05,2]
[336454396,1724835578590,500.0,9.846e-05,2]
[336454397,1724835580494,500.0,9.846e-05,2]
[336454398,1724835658967,200.0,9.796e-05,2]
[336454399,1724835695902,432.8,9.855e-05,2]
[336454400,1724835756570,549.74,9.786e-05,2]
[336454401,1724835914344,150.0,9.888e-05,2]
[336454403,1724835978885,560.74,8.219e-05,2]
[336454406,1724836037354,200.72,9.655e-05,2]
[336454411,1724836150350,250.0,9.605e-05,2]
[336454414,1724836175739,653.76,9.645e-05,2]
[336454417,1724836225501,2406.2824,9.821e-05,2]
[336454418,1724836232089,-303.3037382,9.929e-05,2]
[336454419,1724836232098,-205.98629954,9.941e-05,2]
[336454420,1724836232109,-454.00310351,9.943e-05,2]
[336454421,1724836232145,-846.11919802,9.943e-05,2]
[336454422,1724836232157,-114.80241557,9.943e-05,2]
[336454423,1724836232203,-1335.27392991,9.943e-05,2]
[336454424,1724836232217,-814.99724662,9.943e-05,2]
[336454425,1724836232228,-497.37504199,9.943e-05,2]
[336454426,1724836232237,-155.6375035,9.988e-05,2]
[336454427,1724836232247,-1047.26451466,9.988e-05,2]
[336454428,1724836232256,-6.70293985,9.999e-05,2]
[336454429,1724836232267,-482.77585744,9.999e-05,2]
[336454430,1724836232282,-143.05533103,9.999e-05,2]
[336454431,1724836232292,-736.76508585,0.0001,2]
[336454432,1724836232322,-300.0,0.0001,2]
[336454445,1724836238205,-13.23491415,0.0001,2]
[336454446,1724836238214,-265.64160913,0.00010009,2]
[336454447,1724836238226,-895.11054486,0.00010009,2]
[336454448,1724836238237,-973.74542641,0.00010009,2]
[336454449,1724836238246,-687.65858554,0.00010026,2]
[336454450,1724836238255,-307.21169318,0.00010097,2]
[336454451,1724836238264,-203.17347254,0.00010097,2]
[336454452,1724836238274,-1179.33865055,0.0001023,2]
[336454453,1724836238285,-2580.72134945,0.0001023,2]
[336454454,1724836238294,-499.99,0.0001023,2]
[336454455,1724836238303,-150.99,0.0001023,2]
[336454456,1724836238314,-150.99,0.00010262,2]
[336454457,1724836238323,-150.0,0.00010262,2]
[336454458,1724836238332,-145.01045827,0.00010325,2]
[336454459,1724836238343,-646.16954173,0.00010325,2]
[336454460,1724836238355,-791.18,0.00010325,2]
[336454461,1724836238364,-791.18,0.00010325,2]
[336454462,1724836238374,-1582.36,0.000104,2]
[336454463,1724836238383,-791.18,0.000104,2]
[336454464,1724836238393,-791.18,0.000104,2]
[336454465,1724836238402,-560.74,0.00010462,2]
[336454466,1724836238414,-2258.38163937,0.00010468,2]
[336454467,1724836238425,-917.15752816,0.00010468,2]
[336454468,1724836238438,-394.12782113,0.00010468,2]
[336454469,1724836238450,-194.18301134,0.00010468,2]
[336454470,1724836238460,-309.63599436,0.00010471,2]
[336454471,1724836238474,-194.61118201,0.00010471,2]
[336454472,1724836238485,-299.38327936,0.00010471,2]
[336454473,1724836238494,-547.48970731,0.00010471,2]
[336454474,1724836238503,-791.18,0.000105,2]
[336454475,1724836238513,-791.18,0.000105,2]
[336454476,1724836238522,-421.7,0.000105,2]
[336454477,1724836238531,-155.0,0.00010505,2]
[336454478,1724836238541,-391.88821597,0.00010703,2]
[336454479,1724836238550,-1500.0,0.00010713,2]
[336454480,1724836238560,-3757.49,0.0001072,2]
[336454481,1724836238571,-2500.0,0.0001075,2]
[336454482,1724836238580,-10429.29698362,0.000108,2]
[336454483,1724836238596,-1357.43390719,0.000108,2]
[336454484,1724836238608,-4438.90333128,0.000108,2]
[336454485,1724836238623,-564.662132,0.000108,2]
[336454486,1724836238635,-345.88058944,0.000108,2]
[336454487,1724836238645,-1902.37200391,0.0001085,2]
[336454488,1724836238657,-8284.18896675,0.0001085,2]
[336454490,1724836238669,-448.7075297,0.0001085,2]
[336454492,1724836238680,-585.41820824,0.0001085,2]
[336454494,1724836238696,-3212.85344129,0.0001085,2]
[336454496,1724836238707,-9571.39362899,0.0001085,2]
[336454498,1724836238722,-318.93417872,0.0001085,2]
[336454501,1724836238734,-1262.14798967,0.0001085,2]
[336454503,1724836238746,-1470.87908501,0.0001085,2]
[336454505,1724836238757,-3006.44051846,0.0001085,2]
[336454507,1724836238769,-7442.804616,0.0001085,2]
[336454509,1724836238781,-2107.96685003,0.0001085,2]
[336454511,1724836238792,-13816.91598433,0.0001085,2]
[336454513,1724836238804,-667.76472037,0.0001085,2]
[336454516,1724836238815,-326.82220256,0.0001085,2]
[336454518,1724836238828,-478.56179733,0.0001085,2]
[336454523,1724836240263,-1179.64688846,0.0001085,2]
[336454525,1724836240322,-2495.58714316,0.0001085,2]
[336454526,1724836240334,-3029.01059716,0.0001085,2]
[336454527,1724836240381,-116830.93651991,0.0001085,2]
[336454528,1724836240394,-288.82,0.0001085,2]
[336454529,1724836240494,-695.95800116,0.0001085,2]
[336454530,1724836240605,-311.6,0.0001085,2]
[336454531,1724836240664,-1335.0,0.0001085,2]
[336454532,1724836240675,-278.90148228,0.0001085,2]
[336454533,1724836240780,-87896.64764651,0.0001085,2]
[336454534,1724836240790,-653.76,0.0001085,2]
[336454535,1724836240800,-5405.81377925,0.00010852,2]
[336454536,1724836240810,-1333.00146741,0.00010861,2]
[336454537,1724836240819,-341.26557542,0.00010861,2]
[336454538,1724836240828,-200.72,0.00010862,2]
[336454539,1724836240838,-150.0,0.00010864,2]
[336454540,1724836240847,-500.0,0.00010873,2]
[336454541,1724836240857,-200.0,0.00010873,2]
[336454542,1724836240866,-200.38227572,0.00010873,2]
[336454543,1724836240875,-304.39777343,0.0001089,2]
[336454544,1724836240885,-339.78,0.00010897,2]
[336454545,1724836240895,-150.0,0.00010899,2]
[336454546,1724836240904,-173.22053646,0.00010899,2]
[336454547,1724836240914,-26175.78791644,0.00010899,2]
[336454548,1724836240923,-352.09857059,0.00010899,2]
[336454549,1724836240933,-1465.1925,0.000109,2]
[336454550,1724836240942,-3386.27557811,0.000109,2]
[336454551,1724836240952,-173.22053645,0.000109,2]
[336454552,1724836240965,-173.64546013,0.000109,2]
[336454553,1724836240981,-216.2722549,0.000109,2]
[336454554,1724836240990,-352.09857058,0.000109,2]
[336454555,1724836241001,-326.28228056,0.000109,2]
[336454556,1724836241010,-500.0,0.00010912,2]
[336454557,1724836241019,-152.64908017,0.00010915,2]
[336454558,1724836241029,-700.0,0.00010942,2]
[336454559,1724836241041,-800.0,0.00010942,2]
[336454560,1724836241051,-902.23,0.00010958,2]
[336454561,1724836241060,-370.95394508,0.00010958,2]
[336454562,1724836241069,-501.48790565,0.00010958,2]
[336454563,1724836241079,-500.0,0.00010958,2]
[336454564,1724836241089,-198.4615666,0.00010958,2]
[336454565,1724836241098,-5642.02,0.00010958,2]
[336454566,1724836241107,-500.0,0.00010958,2]
[336454567,1724836241117,-200.0,0.00010959,2]
[336454568,1724836241127,-214.34,0.00010959,2]
[336454569,1724836241135,-170.38,0.00010959,2]
[336454570,1724836241144,-250.0,0.00010959,2]
[336454571,1724836241153,-168.45,0.00010966,2]
[336454572,1724836241162,-500.0,0.00010973,2]
[336454573,1724836241172,-256.00032667,0.00010989,2]
[336454574,1724836241181,-1160.04543997,0.0001099,2]
[336454575,1724836241191,-1160.04543997,0.0001099,2]
[336454576,1724836241200,-1160.04543997,0.0001099,2]
[336454577,1724836241209,-6667.0977052,0.00010995,2]
[336454578,1724836241218,-154.17063965,0.00010997,2]
[336454579,1724836241236,-867.66974072,0.00010997,2]
[336454580,1724836241245,-308.3412793,0.00010997,2]
[336454581,1724836241254,-902.23,0.00010998,2]
[336454582,1724836241264,-5642.02,0.00010998,2]
[336454583,1724836241273,-500.0,0.00010998,2]
[336454584,1724836241282,-500.0,0.00010999,2]
[336454585,1724836241291,-281.73682967,0.00010999,2]
[336454586,1724836241301,-3799.49,0.00010999,2]
[336454587,1724836241311,-413.60566182,0.00010999,2]
[336454588,1724836241320,-182.09092873,0.00010999,2]
[336454589,1724836241330,-170.73845005,0.00010999,2]
[336454590,1724836241339,-342.28080392,0.00010999,4]
[336454591,1724836241348,-500.0,0.00010999,2]
[336454592,1724836241359,-1051.86058066,0.00010999,2]
[336454593,1724836241368,-162.95327982,0.00010999,2]
[336454594,1724836241378,-902.23,0.00010999,2]
[336454595,1724836241387,-902.23,0.00010999,2]
[336454596,1724836241396,-902.23,0.00010999,2]
[336454597,1724836241406,-902.23,0.00010999,2]
[336454598,1724836241416,-902.23,0.00010999,2]
[336454599,1724836241426,-902.23,0.00010999,2]
[336454600,1724836241436,-902.23,0.00010999,2]
[336454601,1724836241446,-902.23,0.00010999,2]
[336454602,1724836241456,-902.23,0.00010999,2]
[336454603,1724836241465,-902.23,0.00010999,2]
[336454604,1724836241477,-902.23,0.00010999,2]
[336454605,1724836241487,-902.23,0.00010999,2]
[336454606,1724836241496,-902.23,0.00010999,2]
[336454607,1724836241506,-902.23,0.00010999,2]
[336454608,1724836241515,-902.23,0.00010999,2]
[336454609,1724836241525,-902.23,0.00010999,2]
[336454610,1724836241535,-902.23,0.00010999,2]
[336454611,1724836241544,-902.23,0.00010999,2]
[336454612,1724836241554,-902.23,0.00010999,2]
[336454613,1724836241563,-902.23,0.00010999,2]
[336454614,1724836241573,-902.23,0.00010999,2]
[336454615,1724836241582,-902.31976526,0.00010999,2]
[336454616,1724836241591,-5642.02,0.00010999,2]
[336454617,1724836241600,-3481.22479522,0.00010999,2]
[336454618,1724836241613,-2160.79520478,0.00010999,2]
[336454619,1724836241622,-5642.02,0.00010999,2]
[336454620,1724836241631,-5642.02,0.00010999,2]
[336454621,1724836241641,-5642.02,0.00010999,2]
[336454622,1724836241651,-5642.02,0.00010999,2]
[336454623,1724836241660,-5642.02,0.00010999,2]
[336454624,1724836241669,-5642.02,0.00010999,2]
[336454625,1724836241679,-5642.02,0.00010999,2]
[336454626,1724836241688,-5642.02,0.00010999,2]
[336454627,1724836241698,-5642.02,0.00010999,2]
[336454628,1724836241707,-5465.41289135,0.00010999,2]
[336454629,1724836241720,-176.60710865,0.00010999,2]